fUSD/lending_fUSD_20251017
["ID","MTS","AMOUNT","RATE_DAILY","PERIOD"]
[391686507,1760728249038,-150.0,0.00042737,30]
[391686508,1760728249047,-150.0,0.00042737,30]
[391686509,1760728249056,-168.31985426,0.0004276,30]
[391686510,1760728249066,-3201.47638591,0.00042764,15]
[391686511,1760728249075,-150.0,0.00042778,30]
[391686512,1760728249085,-150.0,0.00042789,30]
[391686513,1760728249094,-168.31985426,0.00042805,30]
[391686514,1760728249103,-150.0,0.00042805,30]
[391686515,1760728249112,-150.0,0.0004282,30]
[391686516,1760728249122,-3874.87003585,0.00042839,120]
[391686517,1760728249132,-150.0,0.00042844,30]
[391686518,1760728249142,-168.31985426,0.00042851,30]
[391686519,1760728249152,-150.0,0.0004286,30]
[391686520,1760728249163,-150.0,0.00042894,30]
[391686521,1760728249172,-168.31985426,0.00042896,30]
[391686522,1760728249181,-158.85,0.000429,90]
[391686523,1760728249191,-150.0,0.0004291,30]
[391686524,1760728249201,-828.866355,0.00042926,2]
[391686525,1760728249210,-150.0,0.00042941,30]
[391686526,1760728249220,-168.31985426,0.00042941,30]
[391686527,1760728249230,-150.0,0.00042941,30]
[391686528,1760728249240,-150.0,0.00042941,30]
[391686529,1760728249249,-168.31985426,0.00042987,30]
[391686530,1760728249259,-150.0,0.00042987,30]
[391686531,1760728249269,-150.0,0.00042987,30]
[391686532,1760728249279,-150.0,0.00042999,30]
[391686533,1760728249289,-150.0,0.00043023,30]
[391686534,1760728249298,-168.31985426,0.00043032,30]
[391686535,1760728249308,-150.0,0.00043058,30]
[391686536,1760728249317,-150.0,0.00043058,30]
[391686537,1760728249327,-150.0,0.00043078,30]
[391686538,1760728249337,-168.31985426,0.00043078,30]
[391686539,1760728249346,-150.0,0.00043083,30]
[391686540,1760728249355,-999.0,0.00043086,120]
[391686541,1760728249365,-150.0,0.00043103,30]
[391686542,1760728249374,-150.0,0.00043105,30]
[391686543,1760728249383,-168.31985426,0.00043123,30]
[391686544,1760728249393,-17462.9428769,0.00043124,3]
[391686545,1760728249402,-828.866355,0.00043127,2]
[391686546,1760728249411,-2050.0,0.00043134,2]
[391686547,1760728249420,-1267.0,0.00043134,2]
[391686548,1760728249430,-1310.0,0.00043134,2]
[391686549,1760728249439,-605.0,0.00043134,2]
[391686550,1760728249448,-1589.0,0.00043134,2]
[391686551,1760728249457,-816.0,0.00043134,2]
[391686552,1760728249466,-150.0,0.00043154,30]
[391686553,1760728249475,-168.31985426,0.00043169,30]
[391686554,1760728249484,-151.91166681,0.00043187,10]
[391686555,1760728249494,-150.0,0.00043187,30]
[391686556,1760728249504,-1143.0,0.000432,2]
[391686557,1760728249513,-153.0,0.000432,120]
[391686558,1760728249522,-150.0,0.00043208,30]
[391686559,1760728249531,-150.0,0.00043214,30]
[391686560,1760728249540,-168.31985426,0.00043214,30]
[391686561,1760728249550,-150.0,0.00043256,30]
[391686562,1760728249559,-200.0,0.00043256,120]
[391686563,1760728249568,-168.31985426,0.0004326,30]
[391686564,1760728249577,-150.0,0.00043269,30]
[391686565,1760728249588,-150.0,0.00043273,30]
[391686566,1760728249598,-2743.83661,0.0004329,18]
[391686567,1760728249608,-150.0,0.00043299,30]
[391686568,1760728249617,-168.31985426,0.00043305,30]
[391686569,1760728249627,-150.0,0.00043312,30]
[391686570,1760728249636,-150.0,0.0004332,30]
[391686571,1760728249645,-153.51693265,0.0004333,15]
[391686572,1760728249654,-150.0,0.0004335,30]
[391686573,1760728249663,-150.0,0.0004335,30]
[391686574,1760728249672,-168.31985426,0.0004335,30]
[391686575,1760728249682,-150.0,0.0004335,30]
[391686576,1760728249691,-150.0,0.0004338,30]
[391686577,1760728249700,-168.31985426,0.00043396,30]
[391686578,1760728249710,-150.0,0.00043417,30]
[391686579,1760728249719,-150.0,0.00043429,30]
[391686580,1760728249728,-884976.19635246,0.00043431,120]
[391686581,1760728249738,-150.0,0.00043432,30]
[391686582,1760728249748,-150.0,0.00043433,120]
[391686583,1760728249757,-52388.8286307,0.00043434,3]
[391686584,1760728249766,-22628.41361604,0.0004344,120]
[391686585,1760728249776,-151.0,0.00043441,120]
[391686586,1760728249786,-168.31985426,0.00043441,30]
[391686587,1760728249795,-504907.5203,0.00043444,30]
[391686588,1760728249805,-193.74269863,0.0004346,18]
[391686589,1760728249814,-150.0,0.00043487,30]
[391686590,1760728249824,-168.31985426,0.00043487,30]
[391686591,1760728249834,-150.0,0.00043487,30]
[391686592,1760728249843,-150.0,0.00043487,30]
[391686593,1760728249854,-150.0,0.00043487,30]
[391686594,1760728249864,-150.0,0.00043487,30]
[391686595,1760728249875,-150.0,0.00043514,30]
[391686596,1760728249888,-150.0,0.00043522,30]
[391686597,1760728249901,-168.31985426,0.00043532,30]
[391686598,1760728249916,-152.0,0.0004356,120]
[391686599,1760728249927,-168.31985426,0.00043578,30]
[391686600,1760728249939,-150.0,0.00043596,30]
[391686601,1760728249950,-756.02826367,0.000436,30]
[391686602,1760728249961,-150.0,0.00043602,30]
[391686603,1760728249972,-150.0,0.00043623,30]
[391686604,1760728249981,-168.31985426,0.00043623,30]
[391686605,1760728249991,-150.0,0.00043626,30]
[391686606,1760728250001,-150.0,0.00043653,30]
[391686607,1760728250011,-168.31985426,0.00043669,30]
[391686608,1760728250020,-150.0,0.00043678,30]
[391686609,1760728250030,-150.0,0.00043701,30]
[391686610,1760728250039,-150.0,0.00043701,30]
[391686611,1760728250049,-168.31985426,0.00043714,30]
[391686612,1760728250058,-240.16573468,0.00043726,2]
[391686613,1760728250067,-150.0,0.00043726,2]
[391686614,1760728250076,-150.0,0.00043726,2]
[391686615,1760728250087,-500.0,0.00043726,2]
[391686616,1760728250096,-150.0,0.00043726,2]
[391686617,1760728250106,-150.0,0.00043726,2]
[391686618,1760728250116,-500.0,0.00043726,2]
[391686619,1760728250126,-500.0,0.00043726,2]
[391686620,1760728250135,-500.0,0.00043726,2]
[391686621,1760728250145,-150.0,0.00043726,2]
[391686622,1760728250155,-500.0,0.00043726,2]
[391686623,1760728250164,-500.0,0.00043726,2]
[391686624,1760728250174,-500.0,0.00043726,2]
[391686625,1760728250183,-150.0,0.00043726,2]
[391686626,1760728250193,-150.0,0.00043726,2]
[391686627,1760728250203,-500.0,0.00043726,2]
[391686628,1760728250213,-500.0,0.00043726,2]
[391686629,1760728250223,-150.0,0.00043731,30]
[391686630,1760728250233,-449328.4009497,0.00043751,2]
[391686631,1760728250242,-500.0,0.00043751,120]
[391686632,1760728250253,-111423.7727871,0.00043751,2]
[391686633,1760728250262,-7106.6573984,0.00043751,2]
[391686634,1760728250272,-2032.2827596,0.00043751,2]
[391686635,1760728250282,-2853.2020067,0.00043751,2]
[391686636,1760728250292,-193.4323247,0.00043751,2]
[391686637,1760728250302,-150.0,0.00043759,30]
[391686638,1760728250312,-150.0,0.00043759,30]
[391686639,1760728250321,-168.31985426,0.00043759,30]
[391686640,1760728250331,-150.0,0.00043759,30]
[391686641,1760728250340,-300.0,0.00043773,10]
[391686642,1760728250350,-150.0,0.00043775,30]
[391686643,1760728250359,-506.93788694,0.0004378,2]
[391686644,1760728250369,-211.21366109,0.0004378,2]
[391686645,1760728250379,-173.00126746,0.0004378,2]
[391686646,1760728250388,-200.000001,0.00043781,2]
[391686647,1760728250397,-200.0,0.00043781,2]
[391686648,1760728250406,-500.0,0.00043781,2]
[391686649,1760728250416,-200.0,0.00043781,2]
[391686650,1760728250425,-150.0,0.00043781,2]
[391686651,1760728250435,-500.0,0.00043781,2]
[391686652,1760728250444,-500.0,0.00043781,2]
[391686653,1760728250453,-500.0,0.00043781,2]
[391686654,1760728250462,-150.0,0.00043781,2]
[391686655,1760728250472,-500.0,0.00043781,2]
[391686656,1760728250481,-500.0,0.00043781,2]
[391686657,1760728250490,-500.0,0.00043781,2]
[391686658,1760728250500,-500.0,0.00043781,2]
[391686659,1760728250509,-500.0,0.00043781,2]
[391686660,1760728250519,-106479.43652043,0.000438,120]
[391686661,1760728250528,-819.79449689,0.000438,120]
[391686662,1760728250538,-3554.01,0.000438,30]
[391686663,1760728250547,-4900.0,0.000438,15]
[391686664,1760728250557,-168.31985426,0.00043805,30]
[391686665,1760728250567,-150.0,0.0004382,30]
[391686666,1760728250576,-180.0,0.00043835,30]
[391686667,1760728250586,-180.0,0.00043835,30]
[391686668,1760728250596,-245.26442753,0.00043835,30]
[391686669,1760728250605,-7970.9,0.00043835,120]
[391686670,1760728250618,-150.0,0.00043835,30]
[391686671,1760728250628,-500.0,0.00043836,2]
[391686672,1760728250638,-203.07609336,0.00043836,2]
[391686673,1760728250647,-500.0,0.00043836,2]
[391686674,1760728250657,-500.0,0.00043836,2]
[391686675,1760728250666,-500.0,0.00043836,2]
[391686676,1760728250676,-272.65,0.00043836,2]
[391686677,1760728250686,-500.0,0.00043836,2]
[391686678,1760728250695,-300.0,0.00043836,2]
[391686679,1760728250705,-500.0,0.00043836,2]
[391686680,1760728250715,-500.0,0.00043836,2]
[391686681,1760728250725,-500.0,0.00043836,2]
[391686682,1760728250734,-1000.0,0.00043836,28]
[391686683,1760728250745,-150.0,0.00043841,30]
[391686684,1760728250754,-168.31985426,0.0004385,30]
[391686685,1760728250763,-150.0,0.00043862,30]
[391686686,1760728250773,-150.0,0.00043862,30]
[391686687,1760728250783,-150.0,0.00043862,30]
[391686688,1760728250792,-151.0,0.00043877,120]
[391686689,1760728250802,-151.0,0.00043879,30]
[391686690,1760728250811,-156.587,0.00043879,30]
[391686691,1760728250821,-300.0,0.00043879,30]
[391686692,1760728250830,-3000.0,0.00043879,30]
[391686693,1760728250840,-1000.0,0.00043879,30]
[391686694,1760728250850,-1000.0,0.00043879,30]
[391686695,1760728250860,-345.2214,0.00043879,30]
[391686696,1760728250869,-3000.0,0.00043879,30]
[391686697,1760728250879,-1000.0,0.00043879,30]
[391686698,1760728250889,-3000.0,0.00043879,30]
[391686699,1760728250898,-1000.0,0.00043879,30]
[391686700,1760728250910,-3000.0,0.00043879,30]
[391686701,1760728250919,-1000.0,0.00043879,30]
[391686702,1760728250929,-526.63422497,0.00043879,30]
[391686703,1760728250939,-3000.0,0.00043879,30]
[391686704,1760728250949,-250.0,0.00043879,30]
[391686705,1760728250959,-200.0,0.00043879,30]
[391686706,1760728250969,-3000.0,0.00043879,30]
[391686707,1760728250979,-1000.0,0.00043879,30]
[391686708,1760728250990,-250.0,0.00043879,30]
[391686709,1760728251000,-250.0,0.00043879,30]
[391686710,1760728251010,-207.4,0.00043879,30]
[391686711,1760728251020,-815.84956205,0.00043879,30]
[391686712,1760728251030,-1000.0,0.00043879,30]
[391686713,1760728251039,-250.0,0.00043879,30]
[391686714,1760728251049,-250.0,0.00043879,30]
[391686715,1760728251060,-215.0738,0.00043879,30]
[391686716,1760728251070,-1000.0,0.00043879,30]
[391686717,1760728251080,-250.0,0.00043879,30]
[391686718,1760728251090,-250.0,0.00043879,30]
[391686719,1760728251099,-223.0315306,0.00043879,30]
[391686720,1760728251108,-1000.0,0.00043879,30]
[391686721,1760728251118,-250.0,0.00043879,30]
[391686722,1760728251127,-250.0,0.00043879,30]
[391686723,1760728251137,-231.28369723,0.00043879,30]
[391686724,1760728251146,-1000.0,0.00043879,30]
[391686725,1760728251156,-6888.0,0.00043879,30]
[391686726,1760728251166,-250.0,0.00043879,30]
[391686727,1760728251176,-282.14913794,0.00043879,30]
[391686728,1760728251186,-239.84119403,0.00043879,30]
[391686729,1760728251196,-1000.0,0.00043879,30]
[391686730,1760728251206,-7142.856,0.00043879,30]
[391686731,1760728251215,-250.0,0.00043879,30]
[391686732,1760728251225,-248.71531821,0.00043879,30]
[391686733,1760728251235,-1000.0,0.00043879,30]
[391686734,1760728251245,-151.0,0.00043879,30]
[391686735,1760728251254,-7407.141672,0.00043879,30]
[391686736,1760728251264,-500.0,0.00043879,30]
[391686737,1760728251274,-250.0,0.00043879,30]
[391686738,1760728251284,-257.91778498,0.00043879,30]
[391686739,1760728251294,-1000.0,0.00043879,30]
[391686740,1760728251304,-151.0,0.00043879,30]
[391686741,1760728251314,-7681.20591386,0.00043879,30]
[391686742,1760728251323,-250.0,0.00043879,30]
[391686743,1760728251333,-267.46074303,0.00043879,30]
[391686744,1760728251342,-1000.0,0.00043879,30]
[391686745,1760728251353,-151.0,0.00043879,30]
[391686746,1760728251363,-250.0,0.00043879,30]
[391686747,1760728251373,-7965.41053268,0.00043879,30]
[391686748,1760728251383,-1000.0,0.00043879,30]
[391686749,1760728251392,-250.0,0.00043879,30]
[391686750,1760728251402,-277.35679052,0.00043879,30]
[391686751,1760728251411,-151.0,0.00043879,30]
[391686752,1760728251422,-8260.13072239,0.00043879,30]
[391686753,1760728251431,-1000.0,0.00043879,30]
[391686754,1760728251441,-250.0,0.00043879,30]
[391686755,1760728251451,-287.61899177,0.00043879,30]
[391686756,1760728251461,-151.0,0.00043879,30]
[391686757,1760728251470,-8565.75555911,0.00043879,30]
[391686758,1760728251480,-1000.0,0.00043879,30]
[391686759,1760728251489,-250.0,0.00043879,30]
[391686760,1760728251499,-298.26089446,0.00043879,30]
[391686761,1760728251508,-151.0,0.00043879,30]
[391686762,1760728251518,-8882.6885148,0.00043879,30]
[391686763,1760728251527,-1000.0,0.00043879,30]
[391686764,1760728251536,-151.0,0.00043879,30]
[391686765,1760728251546,-250.0,0.00043879,30]
[391686766,1760728251555,-279.68029706,0.00043879,30]
[391686767,1760728251565,-151.0,0.00043879,30]
[391686768,1760728251574,-9211.34798985,0.00043879,30]
[391686769,1760728251584,-1000.0,0.00043879,30]
[391686770,1760728251593,-151.0,0.00043879,30]
[391686771,1760728251603,-250.0,0.00043879,30]
[391686772,1760728251612,-1000.0,0.00043879,30]
[391686773,1760728251623,-9552.16786547,0.00043879,30]
[391686774,1760728251633,-151.0,0.00043879,30]
[391686775,1760728251643,-250.0,0.00043879,30]
[391686776,1760728251653,-1000.0,0.00043879,30]
[391686777,1760728251663,-9905.5980765,0.00043879,30]
[391686778,1760728251673,-151.0,0.00043879,30]
[391686779,1760728251682,-250.0,0.00043879,30]
[391686780,1760728251692,-1000.0,0.00043879,30]
[391686781,1760728251702,-10272.10520533,0.00043879,30]
[391686782,1760728251711,-151.0,0.00043879,30]
[391686783,1760728251721,-250.0,0.00043879,30]
[391686784,1760728251731,-10652.17309792,0.00043879,30]
[391686785,1760728251740,-151.0,0.00043879,30]
[391686786,1760728251749,-250.0,0.00043879,30]
[391686787,1760728251759,-11046.30350255,0.00043879,30]
[391686788,1760728251768,-151.0,0.00043879,30]
[391686789,1760728251778,-262.06009032,0.00043879,30]
[391686790,1760728251787,-11455.01673214,0.00043879,30]
[391686791,1760728251797,-151.0,0.00043879,30]
[391686792,1760728251807,-151.0,0.00043879,30]
[391686793,1760728251816,-11878.85235123,0.00043879,30]
[391686794,1760728251825,-12318.36988823,0.00043879,30]
[391686795,1760728251839,-151.0,0.00043879,30]
[391686796,1760728251849,-12774.14957409,0.00043879,30]
[391686797,1760728251859,-151.0,0.00043879,30]
[391686798,1760728251868,-13246.79310833,0.00043879,30]
[391686799,1760728251878,-1000.0,0.00043879,30]
[391686800,1760728251888,-151.0,0.00043879,30]
[391686801,1760728251899,-13736.92445334,0.00043879,30]
[391686802,1760728251911,-1000.0,0.00043879,30]
[391686803,1760728251923,-151.0,0.00043879,30]
[391686804,1760728251933,-1000.0,0.00043879,30]
[391686805,1760728251942,-151.0,0.00043879,30]
[391686806,1760728251952,-1000.0,0.00043879,30]
[391686807,1760728251962,-151.0,0.00043879,30]
[391686808,1760728251972,-1000.0,0.00043879,30]
[391686809,1760728251982,-301.00491062,0.00043879,30]
[391686810,1760728251994,-1000.0,0.00043879,30]
[391686811,1760728252005,-250.0,0.00043879,30]
[391686812,1760728252015,-1000.0,0.00043879,30]
[391686813,1760728252025,-1000.0,0.00043879,30]
[391686814,1760728252035,-250.0,0.00043879,30]
[391686815,1760728252045,-1000.0,0.00043879,30]
[391686816,1760728252055,-250.0,0.00043879,30]
[391686817,1760728252064,-1000.0,0.00043879,30]
[391686818,1760728252074,-250.0,0.00043879,30]
[391686819,1760728252083,-1000.0,0.00043879,30]
[391686820,1760728252094,-250.0,0.00043879,30]
[391686821,1760728252104,-1000.0,0.00043879,30]
[391686822,1760728252114,-1000.0,0.00043879,30]
[391686823,1760728252124,-1000.0,0.00043879,30]
[391686824,1760728252134,-1000.0,0.00043879,30]
[391686825,1760728252144,-1000.0,0.00043879,30]
[391686826,1760728252155,-1000.0,0.00043879,30]
[391686827,1760728252165,-1000.0,0.00043879,30]
[391686828,1760728252174,-1000.0,0.00043879,30]
[391686829,1760728252184,-1000.0,0.00043879,30]
[391686830,1760728252195,-81207.49715662,0.0004388,60]
[391686831,1760728252205,-690508.1430345,0.0004388,30]
[391686832,1760728252215,-200.0,0.0004388,7]
[391686833,1760728252225,-200.0,0.0004388,120]
[391686834,1760728252236,-200.0,0.0004388,7]
[391686835,1760728252246,-150.0,0.00043896,30]
[391686836,1760728252256,-168.31985426,0.00043896,30]
[391686837,1760728252267,-151.0,0.000439,120]
[391686838,1760728252277,-153.0,0.000439,120]
[391686839,1760728252287,-6200.0,0.000439,16]
[391686840,1760728252297,-150.0,0.00043915,30]
[391686841,1760728252306,-150.0,0.00043923,30]
[391686842,1760728252316,-150.0,0.0004394,30]
[391686843,1760728252326,-168.31985426,0.00043941,30]
[391686844,1760728252336,-150.0,0.00043948,30]
[391686845,1760728252347,-213.94386236,0.00043965,60]
[391686846,1760728252356,-168.31985426,0.00043987,30]
[391686847,1760728252366,-150.0,0.00043987,30]
[391686848,1760728252376,-150.0,0.00043987,30]
[391686849,1760728252387,-150.0,0.00044,57]
[391686850,1760728252397,-150.0,0.00044005,30]
[391686851,1760728252407,-150.0,0.00044022,30]
[391686852,1760728252417,-500.0,0.00044025,120]
[391686853,1760728252426,-150.0,0.00044032,30]
[391686854,1760728252436,-168.31985426,0.00044032,30]
[391686855,1760728252446,-150.0,0.00044045,30]
[391686856,1760728252457,-168.31985426,0.00044077,30]
[391686857,1760728252629,-150.0,0.00044087,30]
[391686858,1760728252639,-184.33,0.000441,30]
[391686859,1760728252648,-184.64,0.000441,2]
[391686860,1760728252658,-150.0,0.00044121,30]
[391686861,1760728252667,-168.31985426,0.00044123,30]
[391686862,1760728252677,-150.0,0.00044129,30]
[391686863,1760728252687,-150.0,0.00044149,30]
[391686864,1760728252696,-150.0,0.00044153,30]
[391686865,1760728252705,-12392.6,0.00044167,117]
[391686866,1760728252714,-150.0,0.00044168,30]
[391686867,1760728252723,-150.0,0.00044168,30]
[391686868,1760728252733,-168.31985426,0.00044168,30]
[391686869,1760728252742,-150.0,0.00044168,30]
[391686870,1760728252751,-999.0,0.00044182,120]
[391686871,1760728252760,-168.31985426,0.00044214,30]
[391686872,1760728252769,-150.0,0.0004425,30]
[391686873,1760728252781,-150.0,0.00044254,30]
[391686874,1760728252791,-168.31985426,0.00044259,30]
[391686875,1760728252800,-2743.83661,0.0004429,22]
[391686876,1760728252810,-150.0,0.00044294,30]
[391686877,1760728252819,-500.0,0.00044299,120]
[391686878,1760728252829,-3554.01,0.000443,30]
[391686879,1760728252838,-168.31985426,0.00044305,30]
[391686880,1760728252847,-150.0,0.00044305,30]
[391686881,1760728252857,-200.0,0.00044319,7]
[391686882,1760728252867,-200.0,0.00044319,7]
[391686883,1760728252877,-150.0,0.0004432,30]
[391686884,1760728252887,-193.74269861,0.0004432,19]
[391686885,1760728252897,-150.0,0.00044332,30]
[391686886,1760728252908,-150.0,0.00044344,30]
[391686887,1760728252917,-150.0,0.00044344,30]
[391686888,1760728252927,-168.31985426,0.0004435,30]
[391686889,1760728252936,-150.0,0.00044359,30]
[391686890,1760728252946,-500.0,0.00044383,120]
[391686891,1760728252956,-500.0,0.00044383,120]
[391686892,1760728252965,-500.0,0.00044383,120]
[391686893,1760728252975,-500.0,0.00044383,120]
[391686894,1760728252985,-500.0,0.00044383,120]
[391686895,1760728252995,-500.0,0.00044383,120]
[391686896,1760728253005,-500.0,0.00044383,120]
[391686897,1760728253015,-561.0,0.00044383,120]
[391686898,1760728253026,-168.31985426,0.00044396,30]
[391686899,1760728253037,-150.0,0.00044414,30]
[391686900,1760728253047,-150.0,0.00044424,30]
[391686901,1760728253058,-168.31985426,0.00044441,30]
[391686902,1760728253068,-150.0,0.00044441,30]
[391686903,1760728253078,-28028.58,0.00044447,120]
[391686904,1760728253088,-150.0,0.00044463,30]
[391686905,1760728253098,-150.0,0.00044467,30]
[391686906,1760728253108,-168.31985426,0.00044486,30]
[391686907,1760728253118,-150.0,0.00044486,30]
[391686908,1760728253128,-150.0,0.00044486,30]
[391686909,1760728253138,-150.0,0.00044496,30]
[391686910,1760728253148,-153.0,0.000445,120]
[391686911,1760728253158,-168.31985426,0.00044532,30]
[391686912,1760728253168,-150.0,0.00044558,30]
[391686913,1760728253178,-150.0,0.00044568,30]
[391686914,1760728253188,-500.0,0.00044573,120]
[391686915,1760728253199,-150.0,0.00044577,30]
[391686916,1760728253208,-150.0,0.00044577,30]
[391686917,1760728253218,-168.31985426,0.00044577,30]
[391686918,1760728253228,-150.0,0.00044577,30]
[391686919,1760728253237,-200.0,0.00044581,120]
[391686920,1760728253247,-168.31985426,0.00044623,30]
[391686921,1760728253257,-150.0,0.0004464,30]
[391686922,1760728253267,-150.0,0.00044653,30]
[391686923,1760728253277,-150.0,0.00044659,30]
[391686924,1760728253287,-150.0,0.0004466,120]
[391686925,1760728253297,-150.0,0.00044665,30]
[391686926,1760728253307,-168.31985426,0.00044668,30]
[391686927,1760728253316,-150.0,0.00044672,30]
[391686928,1760728253326,-150.0,0.00044714,30]
[391686929,1760728253335,-168.31985426,0.00044714,30]
[391686930,1760728253345,-150.0,0.00044741,30]
[391686931,1760728253355,-151.91166681,0.00044758,17]
[391686932,1760728253366,-168.31985426,0.00044759,30]
[391686933,1760728253376,-200.0,0.00044762,7]
[391686934,1760728253386,-150.0,0.00044772,30]
[391686935,1760728253396,-150.0,0.00044777,30]
[391686936,1760728253406,-184.33,0.000448,30]
[391686937,1760728253415,-184.64,0.000448,2]
[391686938,1760728253425,-3554.01,0.000448,30]
[391686939,1760728253435,-168.31985426,0.00044805,30]
[391686940,1760728253445,-150.0,0.00044813,30]
[391686941,1760728253455,-150.0,0.0004482,30]
[391686942,1760728253465,-150.0,0.00044823,30]
[391686943,1760728253475,-500.0,0.00044847,120]
[391686944,1760728253485,-150.0,0.0004485,30]
[391686945,1760728253494,-168.31985426,0.0004485,30]
[391686946,1760728253505,-2971.849,0.00044865,2]
[391686947,1760728253515,-150.0,0.00044882,30]
[391686948,1760728253524,-168.31985426,0.00044895,30]
[391686949,1760728253534,-3201.47638591,0.000449,15]
[391686950,1760728253544,-1200.0,0.000449,16]
[391686951,1760728253554,-150.0,0.00044905,30]
[391686952,1760728253564,-168.31985426,0.00044941,30]
[391686953,1760728253574,-178.57677417,0.00044986,30]
[391686954,1760728253584,-211.07088902,0.00044986,30]
[391686955,1760728253594,-203.16471664,0.00044986,30]
[391686956,1760728253604,-199.58609739,0.00044986,30]
[391686957,1760728253613,-263.87544005,0.00044986,30]
[391686958,1760728253623,-200.59171871,0.00044986,30]
[391686959,1760728253633,-168.31985426,0.00044986,30]
[391686960,1760728253642,-158.22014003,0.00044986,30]
[391686961,1760728253653,-236.78100062,0.00044986,30]
[391686962,1760728253663,-191.4260712,0.00044986,30]
[391686963,1760728253672,-229.25316466,0.00044986,30]
[391686964,1760728253681,-230.85546025,0.00044986,30]
[391686965,1760728253690,-240.42864337,0.00044986,30]
[391686966,1760728253701,-153.00266309,0.00044986,30]
[391686967,1760728253711,-241.14291792,0.00044986,30]
[391686968,1760728253721,-210.64365556,0.00044986,30]
[391686969,1760728253730,-169.55956813,0.00044986,30]
[391686970,1760728253741,-5932.32,0.0004499,120]
[391686971,1760728253752,-151.0,0.00044997,120]
[391686972,1760728253762,-151.0,0.00044997,120]
[391686973,1760728253772,-567658.39025884,0.00045,120]
[391686974,1760728253796,-2555.52023784,0.00045,120]
[391686975,1760728253808,-482.25934277,0.00045,120]
[391686976,1760728253864,-6489.22987441,0.00045,120]
[391686977,1760728253877,-2244.0,0.00045,120]
[391686978,1760728253890,-1013.6829992,0.00045,120]
[391686979,1760728254069,-500.0,0.00025478,2]
[391686980,1760728254079,-45.8000004,0.00025573,2]
[391686981,1760728254264,-606.47402752,0.00025573,2]
[391686982,1760728254274,-150.0,0.00033377,3]
[391686983,1760728254284,-599.82578665,0.00034008,2]
[391686984,1760728254296,-583.17421335,0.00034008,2]
[391686985,1760728254305,-298.27449584,0.00034134,2]
[391686986,1760728254315,-300.0,0.00035617,3]
[391686987,1760728254325,-1026.19129081,0.00037008,2]
[391686988,1760728254338,-156.80870919,0.00037008,2]
[391686989,1760728254348,-546.7,0.00038517,2]
[391686990,1760728254359,-168.24,0.00038517,2]
[391686991,1760728254369,-42.18917332,0.00038517,2]
[391686992,1760728254381,-743.58253752,0.00038517,2]
[391686993,1760728254392,-413.59828916,0.00038517,2]
[391686994,1760728254402,-103.59371082,0.00038517,2]
[391686995,1760728254421,-46.40628918,0.00038517,2]
[391686996,1760728254431,-150.0,0.00038846,3]
[391686997,1760728254440,-153.0,0.00039792,30]
[391686998,1760728254450,-153.0,0.00039792,30]
[391686999,1760728254459,-153.0,0.00039792,30]
[391687000,1760728254468,-153.0,0.00039792,30]
[391687001,1760728254478,-326.11904883,0.00040008,2]
[391687002,1760728262899,500.0,0.00026634,120]
[391687003,1760728348447,153.543573,0.00032098,120]
[391687008,1760728728496,-6189.54090147,0.000196,2]
[391687009,1760728728521,-300.45909853,0.000197,3]
[391687014,1760728777023,-314.67,0.00013699,2]